bitfinex/quotes_ETHUSD_20240721
["timestamp","ask_amount","ask_price","bid_price","bid_amount"]
[1721542919611,2.86,3496.5,3495.2,2.86103]
[1721542919817,2.85984,3496.7,3495.6,2.86066]
[1721542920018,2.85984,3496.7,3495.7,0.34327111]
[1721542920230,7.12718,3497.2,3495.7,0.286066]
[1721542920430,2.85999,3496.6,3495.7,0.286066]
[1721542920752,7.12718,3497.2,3495.8,2.86056]
[1721542920753,2.8596,3497.0,3495.8,2.86056]
[1721542920964,2.8597,3496.9,3495.7,0.286066]
[1721542921127,2.85992,3496.6,3495.7,0.286066]
[1721542921326,2.85992,3496.6,3495.8,1.0596796]
[1721542921851,2.8597,3496.9,3495.9,2.91768245]
[1721542922158,2.85926,3497.5,3496.0,2.488]
[1721542922381,2.85941,3497.3,3496.2,2.86024]
[1721542922654,2.85943,3497.2,3496.3,1.279824]
[1721542922861,2.85951,3497.1,3496.3,1.279824]
[1721542923621,2.8596,3497.0,3496.3,1.279824]
[1721542923825,2.85983,3496.7,3496.1,7.45]
[1721542924009,2.85975,3496.8,3496.0,2.488]
[1721542925230,2.85986,3496.7,3496.0,2.488]
[1721542927135,2.85994,3496.6,3496.0,2.488]
[1721542928432,2.85986,3496.7,3496.0,2.488]
[1721542928638,2.85986,3496.7,3496.1,0.35476796]
[1721542929373,2.86023,3496.3,3495.7,7.45]
[1721542929667,2.86001,3496.5,3495.4,7.45]
[1721542929668,5.72164,3495.5,3495.4,7.45]
[1721542929817,2.86091,3495.4,3494.7,7.45]
[1721542930023,2.86103,3495.3,3494.7,7.45]
[1721542930471,2.86116,3495.1,3494.7,7.45]
[1721542930669,2.86103,3495.3,3494.7,7.45]
[1721542930845,2.86092,3495.4,3494.7,8.42696]
[1721542931473,2.86098,3495.3,3494.7,8.42696]
[1721542931826,2.86074,3495.6,3494.7,8.42696]
[1721542932267,4.78758,3495.8,3494.7,8.42696]
[1721542932268,2.86058,3495.8,3494.7,8.42696]
[1721542933170,2.4741,3495.9,3494.7,8.42696]
[1721542933339,2.861,3495.3,3494.7,7.45]
[1721542933538,2.86083,3495.5,3494.7,7.45]
[1721542933871,2.86066,3495.7,3494.7,7.45]
[1721542934173,2.86066,3495.7,3494.8,2.3196]
[1721542934385,2.86058,3495.8,3494.8,5.18097]
[1721542934668,2.86058,3495.8,3494.9,1.263097]
[1721542935496,2.86082,3495.5,3494.8,2.3196]
[1721542937579,1.927,3495.8,3494.8,2.3196]
[1721542938241,2.86068,3495.7,3494.8,2.3196]
[1721542938455,2.8608,3495.6,3494.8,2.3196]
[1721542938633,2.86068,3495.7,3494.8,2.3196]
[1721542938634,5.52021747,3496.2,3494.8,3.582718]
[1721542938840,4.927,3496.2,3495.0,2.86121]
[1721542939569,2.86043,3496.0,3495.0,2.86121]
[1721542939763,2.8605,3495.9,3495.0,1.6812534]
[1721542940554,2.86073,3495.7,3495.0,1.6812534]
[1721542940880,2.86073,3495.7,3494.8,2.3196]
[1721542940881,2.86083,3495.5,3494.8,2.3196]
[1721542941084,2.8609,3495.4,3494.7,7.45]
[1721542941452,1.927,3495.8,3494.7,7.45]
[1721542941453,2.86074,3495.6,3494.7,7.45]
[1721542942090,2.86083,3495.5,3494.7,7.45]
[1721542943147,4.78758,3495.8,3494.7,7.45]
[1721542943353,1.36809046,3495.7,3494.7,8.713115]
[1721542943687,2.86042,3496.0,3494.7,8.713115]
[1721542943856,1.36821268,3495.9,3494.9,2.86124]
[1721542944185,4.22873268,3495.9,3495.0,0.05721676]
[1721542944489,1.36821268,3495.8,3495.0,0.05721682]
[1721542944657,2.86067,3495.7,3495.1,2.3196]
[1721542944858,1.36808811,3495.6,3495.1,2.3196]
[1721542945282,3.45377747,3495.9,3495.1,2.3196]
[1721542945283,2.8606,3495.8,3495.1,2.3196]
[1721542945489,1.36791329,3495.7,3495.1,2.3196]
[1721542946229,1.36791329,3495.7,3495.1,2.837697]
[1721542946400,6.11780764,3496.2,3495.1,2.837697]
[1721542946401,3.59321747,3496.2,3495.3,2.86096]
[1721542946584,3.59321747,3496.2,3495.1,2.3196]
[1721542946585,1.36872203,3496.1,3495.1,9.7696]
[1721542946792,1.36872203,3496.1,3495.1,12.63073]
[1721542946987,3.59321747,3496.3,3495.3,2.86092]
[1721542947209,1.36876071,3496.2,3495.3,2.86092]
[1721542948019,1.36876071,3496.2,3495.4,2.86089]
[1721542948440,1.36876071,3496.2,3495.7,2.86064]
[1721542948581,0.59321747,3496.5,3495.7,2.86064]
[1721542948787,1.36914881,3496.4,3495.5,2.91798675]
[1721542949223,1.36914881,3496.4,3495.6,2.86072]
[1721542950012,1.36914881,3496.3,3495.6,2.86072]
[1721542950212,0.59321747,3496.5,3495.5,0.05720675]
[1721542950213,0.59321747,3496.5,3495.7,2.91783674]
[1721542950388,0.59321747,3496.6,3495.9,2.4545]
[1721542950726,1.36946357,3496.5,3495.9,2.4545]
[1721542950924,0.59321747,3496.7,3495.9,5.31492]
[1721542951219,1.36963847,3496.6,3495.9,5.31492]
[1721542952219,1.36963847,3496.6,3495.9,2.4545]
[1721542953014,1.36963847,3496.6,3495.9,6.64927147]
[1721542954475,0.59321747,3496.7,3496.1,2.86032]
[1721542954607,0.59321747,3496.8,3496.2,2.91741951]
[1721542954810,0.59321747,3496.8,3496.2,2.86022]
[1721542955048,0.59321747,3496.9,3496.3,0.286022]
[1721542955537,1.3702777,3496.8,3496.3,0.286022]
[1721542956130,0.59321747,3497.0,3496.3,0.286022]
[1721542956325,0.59321747,3497.1,3496.3,0.286022]
[1721542956533,0.59321747,3497.2,3496.6,2.85991]
[1721542956909,0.59321747,3497.2,3496.4,2.86003]
[1721542957636,0.59321747,3497.2,3496.5,2.85998]
[1721542957837,0.59321747,3497.3,3496.6,0.285998]
[1721542958606,0.59321747,3497.3,3496.2,2.86024]
[1721542958845,0.59321747,3497.3,3496.5,2.4545]
[1721542959649,3.45256747,3497.3,3496.5,2.4545]
[1721542960358,2.85944,3497.2,3496.5,2.4545]
[1721542960720,0.59321747,3497.3,3496.5,2.4545]
[1721542961067,3.45257747,3497.3,3496.5,2.4545]
[1721542961217,2.85936,3497.3,3496.5,2.4545]
[1721542962347,2.85936,3497.3,3496.6,0.531457]
[1721542962564,2.85936,3497.3,3496.5,2.4545]
[1721542964337,2.85918,3497.5,3496.5,2.4545]
[1721542964656,2.85926,3497.4,3496.5,2.4545]
[1721542966550,2.85935,3497.3,3496.5,2.4545]
[1721542967558,2.85966,3497.0,3496.2,7.45]
[1721542969636,2.8597,3496.9,3496.2,7.45]
[1721542969838,2.85962,3497.0,3496.2,7.45]
[1721542970023,2.85968,3496.9,3496.2,7.45]
[1721542970228,2.85943,3497.2,3496.2,9.86738252]
[1721542970229,2.85963,3497.0,3496.2,9.86738252]
[1721542970666,2.85975,3496.9,3496.2,9.86738252]
[1721542970825,2.85975,3496.9,3496.2,7.45]
[1721542972955,2.85976,3496.8,3496.2,7.45]
[1721542973155,2.85973,3496.9,3496.1,2.4545]
[1721542973562,2.85954,3497.1,3496.1,5.31481]
[1721542973866,2.85954,3497.1,3496.2,2.17495915]
[1721542974234,2.85959,3497.0,3496.2,2.17495915]
[1721542974980,0.59321747,3497.4,3496.5,2.85998]
[1721542975264,0.59321747,3497.4,3496.3,0.0571926]
[1721542975265,2.85917,3497.6,3496.6,5.344199]
[1721542975476,2.85917,3497.6,3496.7,0.8204279]
[1721542975934,2.85898,3497.8,3496.7,3.6802579]
[1721542976334,2.85898,3497.8,3496.7,0.8204279]
[1721542976646,4.49032814,3498.1,3496.9,2.85967]
[1721542976842,4.49032814,3498.1,3497.0,0.05718162]
[1721542977172,2.85879,3498.0,3497.1,5.28658]
[1721542977482,1.63162814,3498.1,3497.2,2.85941]
[1721542977772,1.63162814,3498.1,3497.3,0.528651]
[1721542978552,1.63162814,3498.1,3497.3,0.58582899]
[1721542979670,1.63162814,3498.1,3497.3,0.528651]
[1721542980033,1.63162814,3498.1,3497.3,3.387931]
[1721542980571,1.63162814,3498.1,3497.4,2.85926]
[1721542980775,1.63162814,3498.1,3497.5,0.3387911]
[1721542981441,1.63162814,3498.1,3497.6,0.0571736]
[1721542981841,1.63162814,3498.1,3497.5,0.3387911]
[1721542982046,1.63162814,3498.1,3497.3,0.528651]
[1721542982245,1.63162814,3498.1,3497.3,3.387981]
[1721542982443,1.63162814,3498.1,3497.4,2.85925]
[1721542982646,1.63162814,3498.1,3497.3,3.387961]
[1721542983101,1.63162814,3498.1,3497.4,2.85925]
[1721542983267,1.63162814,3498.1,3497.5,0.6247321]
[1721542983581,2.85844,3498.5,3497.6,0.0571736]
[1721542983781,2.85832,3498.6,3497.7,0.057173]
[1721542983977,2.85832,3498.6,3497.6,2.85908]
[1721542983978,2.85832,3498.6,3497.9,2.4271]
[1721542989293,2.85812,3498.8,3498.0,0.05716832]
[1721542989937,2.85821,3498.7,3497.9,2.4271]
[1721542990797,0.59321747,3499.0,3497.6,2.85908]
[1721542991021,0.59321747,3499.0,3497.5,2.4697]
[1721542991022,2.85837,3498.5,3497.5,2.4697]
[1721542991193,1.927,3498.8,3497.4,19.69]
[1721542991194,2.85878,3498.0,3497.4,19.69]
[1721542991394,2.8586,3498.3,3497.0,7.45]
[1721542991593,2.85899,3497.8,3497.0,7.45]
[1721542992018,2.85879,3498.0,3497.0,7.45]
[1721542992218,2.85879,3498.0,3497.0,10.30956]
[1721542992443,2.85887,3497.9,3497.0,10.30956]
[1721542992940,2.85887,3497.9,3497.0,7.45]
[1721542993115,2.85894,3497.8,3497.0,7.45]
[1721542994414,2.85877,3498.0,3497.1,2.501936]
[1721542995136,2.85877,3498.0,3497.1,5.361436]
[1721542995322,2.85877,3498.0,3497.2,2.4697]
[1721542996249,3.45179747,3498.3,3497.3,2.85926]
[1721542996401,3.45179747,3498.3,3497.4,1.0690396]
[1721542997034,3.74836312,3498.5,3497.4,3.9282396]
[1721542997035,3.45172747,3498.4,3497.4,3.9282396]
[1721542997335,3.0,3498.3,3497.4,3.9282396]
[1721542998046,3.45172747,3498.4,3497.5,2.85917]
[1721542998203,0.59321747,3498.4,3497.5,2.85917]
[1721542998398,0.59321747,3498.4,3497.6,0.67875496]
[1721542998603,3.45159747,3498.5,3497.6,0.67875496]
[1721542999137,0.59321747,3498.4,3497.6,3.53784496]
[1721543000929,3.45159747,3498.5,3497.6,3.53784496]
[1721543001153,3.45159747,3498.5,3497.7,2.4697]
[1721543002172,0.59321747,3498.4,3497.7,2.4697]
[1721543005145,0.59321747,3498.4,3497.7,3.8405382]
[1721543005952,0.59321747,3498.4,3497.7,6.6995482]
[1721543007881,0.59321747,3498.4,3497.7,3.8405382]
[1721543008540,3.45157747,3498.5,3497.7,3.8405382]
[1721543009162,0.59321747,3498.3,3497.7,2.4697]
[1721543009477,2.8585,3498.4,3497.7,2.4697]
[1721543009478,3.45171747,3498.4,3497.7,2.4697]
[1721543011500,2.85853,3498.3,3497.7,2.4697]
[1721543012917,0.59321747,3498.5,3497.7,5.32866]
[1721543013061,0.59321747,3498.5,3497.7,6.99934696]
[1721543014337,0.59321747,3498.4,3497.7,6.99934696]
[1721543016330,0.59321747,3498.5,3497.9,2.85883]
[1721543016947,0.59321747,3498.6,3497.9,2.85883]
[1721543017258,0.59321747,3498.5,3498.0,0.9858137]
[1721543017752,0.59321747,3498.4,3497.7,6.99934696]
[1721543018344,0.59321747,3498.4,3497.8,2.85893]
[1721543019198,0.59321747,3498.3,3497.9,2.85882]
[1721543019452,0.59321747,3498.4,3497.9,2.85882]
[1721543019648,0.59321747,3498.4,3498.0,2.85876]
[1721543020346,1.99180764,3498.7,3498.0,2.85876]
[1721543020347,0.59321747,3498.3,3498.0,2.85876]
[1721543020571,0.59321747,3498.3,3498.0,3.45422627]
[1721543020722,0.59321747,3498.3,3497.8,2.85892]
[1721543021456,0.59321747,3498.2,3497.8,2.85892]
[1721543022310,0.59321747,3498.2,3497.7,4.14038696]
[1721543022506,0.59321747,3498.2,3497.7,6.99938696]
[1721543022911,0.59321747,3498.2,3497.8,2.85893]
[1721543023303,0.59321747,3498.2,3497.8,3.8447797]
[1721543025709,0.59321747,3498.2,3497.9,2.85885]
[1721543025904,0.59321747,3498.2,3498.0,2.85876]
[1721543026324,0.59321747,3498.3,3498.0,2.85876]
[1721543026806,0.59321747,3498.3,3498.1,2.85868]
[1721543027012,0.59321747,3498.4,3498.2,0.571752]
[1721543027341,0.49321747,3498.4,3498.2,3.430362]
[1721543027524,0.88992312,3498.6,3498.2,3.430362]
[1721543027935,0.88992312,3498.7,3498.2,3.430362]
[1721543031521,0.88992312,3498.7,3498.3,5.11512]
[1721543031754,0.88992312,3498.7,3498.4,0.6487872]
[1721543032509,0.88992312,3498.8,3498.4,0.6487872]
[1721543033415,0.88992312,3498.8,3498.4,1.4497872]
[1721543033771,0.88992312,3499.4,3498.9,2.85802]
[1721543034071,1.48985895,3499.8,3498.9,0.651722]
[1721543034072,1.69092312,3499.5,3498.9,0.651722]
[1721543034249,0.801,3499.3,3498.5,12.56495]
[1721543034815,0.801,3499.1,3498.5,9.7066]
[1721543035017,0.801,3498.9,3498.5,7.45]
[1721543035329,0.801,3499.1,3498.5,7.45]
[1721543035921,0.88992312,3499.2,3498.5,7.45]
[1721543036214,0.88992312,3499.3,3498.5,12.005148]
[1721543036415,0.88992312,3499.3,3498.7,2.8582]
[1721543037208,0.59540959,3499.2,3498.8,5.1147]
[1721543037413,0.88992312,3499.3,3498.8,2.2566]
[1721543037414,0.59540959,3499.3,3498.8,2.2566]
[1721543038143,0.59540959,3499.3,3498.9,2.85802]
[1721543038308,0.59540959,3499.4,3498.9,2.85802]
[1721543040959,0.59540959,3499.4,3498.8,2.626499]
[1721543041178,0.801,3499.3,3498.8,5.11471]
[1721543041396,0.801,3499.1,3498.5,14.483548]
[1721543042272,1.39640959,3499.3,3498.5,14.483548]
[1721543042455,0.801,3498.9,3498.5,9.9284]
[1721543042644,0.59540959,3498.8,3498.5,7.45]
[1721543043270,0.801,3498.7,3498.1,5.33708]
[1721543043456,1.39640959,3498.7,3498.1,5.33708]
[1721543043658,0.701,3498.7,3498.1,5.33708]
[1721543043863,1.29640959,3498.7,3498.1,1.66318097]
[1721543044053,0.801,3498.5,3498.0,7.45]
[1721543044252,1.39640959,3498.7,3498.0,7.45]
[1721543044551,0.801,3498.5,3498.0,7.45]
[1721543047566,3.65938,3498.5,3498.0,7.45]
[1721543048189,4.25478959,3498.5,3498.0,7.45]
[1721543048488,0.801,3498.5,3498.0,7.45]
[1721543049486,0.801,3498.5,3497.7,2.4784]
[1721543049683,0.801,3498.5,3497.8,2.91736562]
[1721543050296,0.59540959,3498.6,3497.8,2.91736562]
[1721543051382,3.45369959,3498.6,3497.8,2.91736562]
[1721543051882,0.59540959,3498.6,3497.8,2.91736562]
[1721543052272,0.59540959,3498.6,3497.9,0.801]
[1721543052486,0.59540959,3498.6,3498.0,0.90557256]
[1721543056476,0.59540959,3498.5,3498.0,0.90557256]
[1721543056679,1.39640959,3498.5,3497.7,2.4784]
[1721543056993,2.85845,3498.4,3497.7,5.4784]
[1721543058502,3.45385959,3498.4,3497.7,5.4784]
[1721543059298,2.85845,3498.4,3497.7,5.4784]
[1721543059626,1.39640959,3498.5,3497.7,5.4784]
[1721543059809,4.25477959,3498.5,3497.8,1.658849]
[1721543060008,3.45377959,3498.5,3497.8,1.658849]
[1721543062131,3.45377959,3498.5,3497.9,0.801]
[1721543063326,2.85837,3498.5,3497.9,0.801]
[1721543063624,3.45377959,3498.5,3497.9,0.801]
[1721543063938,2.85837,3498.5,3498.0,1.0897259]
[1721543064638,3.45377959,3498.5,3498.0,1.0897259]
[1721543065624,0.59540959,3498.6,3498.0,1.0897259]
[1721543065929,0.59540959,3498.7,3498.3,0.801]
[1721543066130,0.59540959,3498.7,3498.0,1.0897259]
[1721543066131,0.59540959,3498.8,3498.4,2.3547]
[1721543067594,3.45353959,3498.8,3498.4,2.3547]
[1721543070844,0.59540959,3498.7,3498.4,2.3547]
[1721543072527,3.45360959,3498.7,3498.4,2.3547]
[1721543074273,0.59540959,3498.7,3498.4,2.3547]
[1721543074414,3.45352959,3498.8,3498.5,0.31557]
[1721543074936,2.85812,3498.8,3498.5,0.31557]
[1721543075138,3.45352959,3498.8,3498.5,0.31557]
[1721543076403,3.45352959,3498.8,3498.4,2.3547]
[1721543076632,0.59540959,3498.7,3498.4,2.3547]
[1721543077221,3.45361959,3498.7,3498.4,2.3547]
[1721543077398,0.59540959,3498.7,3498.4,2.3547]
[1721543077608,3.45361959,3498.7,3498.4,2.3547]
[1721543079305,3.45361959,3498.7,3498.4,2.72634495]
[1721543080142,1.2095785,3498.6,3498.4,2.72634495]
[1721543080348,4.0678785,3498.6,3498.4,2.72634495]
[1721543080641,1.2095785,3498.5,3498.4,2.72634495]
[1721543081942,1.2095785,3498.5,3498.4,2.3547]
[1721543084445,1.80498809,3498.5,3498.4,2.3547]
[1721543084652,1.2095785,3498.5,3498.4,2.3547]
[1721543085463,1.2095785,3498.5,3498.1,0.56074949]
[1721543085464,4.0679385,3498.5,3498.1,0.56074949]
[1721543085672,1.80626533,3498.4,3497.9,6.2666]
[1721543085962,1.2095785,3498.3,3497.9,6.2666]
[1721543086161,1.04697901,3498.2,3497.9,6.2666]
[1721543086332,3.45519683,3498.4,3497.9,6.2666]
[1721543086531,1.04698751,3498.3,3497.9,6.2666]
[1721543086731,1.04698751,3498.3,3498.0,0.63666]
[1721543087365,1.64367434,3498.3,3498.0,0.63666]
[1721543087560,1.04698751,3498.2,3498.0,0.63666]
[1721543088829,3.45519683,3498.4,3498.0,0.63666]
[1721543089030,1.04695733,3498.3,3498.1,0.83940911]
[1721543093349,3.45519683,3498.4,3498.1,0.83940911]
[1721543093550,1.04703795,3498.3,3498.1,0.83940911]
[1721543093745,3.45519683,3498.4,3498.1,0.83940911]
[1721543093950,1.04705023,3498.3,3498.1,0.83940911]
[1721543094257,2.85851,3498.4,3498.2,0.71060091]
[1721543095352,2.85851,3498.4,3497.9,6.2666]
[1721543095353,3.9056379,3498.3,3497.9,6.2666]
[1721543095634,3.45521683,3498.3,3497.9,6.2666]
[1721543096591,0.9762126,3498.2,3497.9,6.2666]
[1721543098200,2.85876,3498.1,3497.9,3.0]
[1721543098354,2.85876,3498.1,3497.7,3.901]
[1721543098654,2.85876,3498.1,3497.8,1.38389]
[1721543099375,0.59668683,3498.2,3497.7,0.1]
[1721543099548,2.85893,3497.8,3497.7,0.1]
[1721543100555,3.45561683,3497.8,3497.7,0.1]
[1721543102164,9.46524683,3497.8,3497.7,0.1]
[1721543102501,8.96798781,3497.8,3497.7,0.1]
[1721543102652,10.36008823,3497.8,3497.7,0.1]
[1721543102855,10.4595158,3497.8,3497.7,0.1]
[1721543103087,10.35271667,3497.8,3497.7,0.1]
[1721543103476,10.45672861,3497.8,3497.7,0.1]
[1721543103868,8.96798757,3497.8,3497.7,0.1]
[1721543104203,10.15896533,3497.8,3497.7,0.1]
[1721543105360,8.86856,3497.8,3497.7,0.1]
[1721543106397,9.76093123,3497.8,3497.7,0.1]
[1721543107305,7.41123123,3497.8,3497.7,0.1]
[1721543107627,7.1136174,3497.8,3497.7,0.1]
[1721543108519,7.91421626,3497.8,3497.7,0.1]
[1721543112215,6.51886,3497.8,3497.7,0.1]
[1721543113739,2.85893,3497.8,3497.7,0.1]
[1721543115887,3.65993,3497.8,3497.7,0.1]
[1721543116847,6.51886,3497.8,3497.7,0.1]
[1721543117685,3.65993,3497.8,3497.7,0.1]
[1721543120681,2.85893,3497.8,3497.7,0.1]
[1721543121085,3.65993,3497.8,3497.7,0.1]
[1721543122092,6.51886,3497.8,3497.7,0.1]
[1721543122293,6.884853,3497.8,3497.7,0.1]
[1721543122695,7.4796104,3497.8,3497.7,0.1]
[1721543123108,6.884853,3497.8,3497.7,0.1]
[1721543123405,6.51886,3497.8,3497.7,0.1]
[1721543126715,3.65993,3497.8,3497.7,0.1]
[1721543127251,2.85893,3497.8,3497.7,0.1]
[1721543127541,3.65993,3497.8,3497.7,0.1]
[1721543129390,6.51886,3497.8,3497.7,0.1]
[1721543131193,7.1136174,3497.8,3497.7,0.1]
[1721543132087,6.51886,3497.8,3497.7,0.1]
[1721543132727,7.3790809,3497.8,3497.7,0.1]
[1721543133129,10.60955213,3497.8,3497.7,0.1]
[1721543133662,9.81661012,3497.8,3497.7,0.1]
[1721543135668,11.00758788,3497.8,3497.7,0.1]
[1721543135865,9.81661012,3497.8,3497.7,0.1]
[1721543136671,11.00758788,3497.8,3497.7,0.1]
[1721543139566,8.57005866,3497.8,3497.7,0.1]
[1721543140436,7.3790809,3497.8,3497.7,0.1]
[1721543140865,6.9100318,3497.8,3497.7,0.1]
[1721543141029,7.7110318,3497.8,3497.7,0.1]
[1721543143580,6.51886,3497.8,3497.7,0.1]
[1721543144039,8.0099322,3497.8,3497.7,0.1]
[1721543144440,6.61828494,3497.8,3497.7,0.1]
[1721543147136,7.69099598,3497.8,3497.7,0.1]
[1721543147738,14.96764273,3497.8,3497.7,0.1]
[1721543148037,16.17651724,3497.8,3497.7,0.1]
[1721543150475,18.26513226,3497.8,3497.7,0.1]
[1721543151269,21.12406226,3497.8,3497.7,0.1]
[1721543151470,18.26454006,3497.8,3497.7,0.1]
[1721543151992,16.17651724,3497.8,3497.7,0.1]
[1721543152773,18.26405685,3497.8,3497.7,0.1]
[1721543153855,21.12298685,3497.8,3497.7,1e-05]
[1721543154340,21.89437724,3497.8,3497.7,1e-05]
[1721543154543,22.44437724,3497.8,3497.7,1e-05]
[1721543154742,2.86014,3496.4,3496.2,9.8458]
[1721543154987,4.2572433,3496.4,3496.2,2.3958]
[1721543155363,2.86016,3496.3,3496.2,2.3958]
[1721543156192,1.3971033,3496.4,3496.2,2.63538]
[1721543156494,2.86006,3496.5,3496.2,2.63538]
[1721543160805,0.5961033,3496.7,3496.2,2.63538]
[1721543161181,3.4559533,3496.7,3496.2,2.63538]
[1721543161515,0.5961033,3496.8,3496.2,2.63538]
[1721543161800,3.4558633,3496.8,3496.3,0.263538]
[1721543163206,2.85996,3496.6,3496.3,0.263538]
[1721543164996,3.4558633,3496.8,3496.3,0.263538]
[1721543165179,2.85984,3496.7,3496.3,0.263538]
[1721543167776,0.5961033,3496.8,3496.3,0.263538]
[1721543167974,3.4558733,3496.8,3496.3,0.263538]
[1721543169808,3.4558733,3496.8,3496.4,0.2659338]
[1721543170309,2.85987,3496.7,3496.4,0.2659338]
[1721543171514,2.85987,3496.7,3496.2,2.3958]
[1721543175107,3.66087,3496.7,3496.2,2.3958]
[1721543175330,2.85987,3496.7,3496.2,2.3958]
[1721543177014,3.66087,3496.7,3496.2,2.3958]
[1721543177221,4.2569733,3496.7,3496.2,2.3958]
[1721543177429,3.4559733,3496.7,3496.2,2.3958]
[1721543178253,4.2569733,3496.7,3496.2,2.3958]
[1721543178437,3.4559733,3496.7,3496.2,2.3958]
[1721543179156,4.2569733,3496.7,3496.2,2.3958]
[1721543179352,3.4559733,3496.7,3496.2,2.3958]
[1721543180266,0.5961033,3496.8,3496.2,6.081647]
[1721543180426,0.5961033,3496.8,3496.2,3.221427]
[1721543180766,0.801,3496.9,3496.2,3.221427]
[1721543180767,1.3971033,3496.9,3496.2,3.221427]
[1721543181645,0.5961033,3496.9,3496.2,0.825627]
[1721543181825,0.5961033,3496.9,3496.3,2.7624947]
[1721543187327,0.5961033,3496.8,3496.3,5.6226347]
[1721543187525,0.5961033,3496.8,3496.4,2.3138]
[1721543188978,0.5961033,3497.0,3496.7,2.3138]
[1721543189265,0.5961033,3497.1,3496.8,0.23138]
[1721543191006,0.5961033,3497.0,3496.8,0.23138]
[1721543197209,0.89415496,3497.2,3496.8,0.23138]
[1721543197210,0.5961033,3497.1,3496.8,0.23138]
[1721543197919,0.5961033,3497.2,3496.8,0.23138]
[1721543198118,0.5961033,3497.2,3496.9,0.826487]
[1721543198331,0.5961033,3497.4,3497.0,2.4854]
[1721543198845,0.5961033,3497.5,3497.0,2.4854]
[1721543200424,1.3971033,3497.6,3497.0,2.4854]
[1721543202121,0.5961033,3497.6,3497.0,2.4854]
[1721543202313,1.19220661,3497.9,3497.2,2.4854]
[1721543202314,0.5961033,3497.7,3497.2,2.4854]
[1721543202513,0.5961033,3497.8,3497.2,2.4854]
[1721543203252,0.5961033,3497.8,3497.2,5.34481]
[1721543203480,0.5961033,3497.9,3497.2,5.34481]
[1721543203757,0.5961033,3497.9,3497.2,6.37144037]
[1721543204445,0.5961033,3498.0,3497.2,6.37144037]
[1721543204670,0.5961033,3498.0,3497.3,2.4854]
[1721543205315,0.5961033,3497.9,3497.3,2.4854]
[1721543206313,4.2559633,3497.9,3497.3,3.53204471]
[1721543206545,3.65986,3497.9,3497.3,2.4854]
[1721543208261,0.801,3497.7,3497.3,2.4854]
[1721543214570,2.85895,3497.8,3497.3,2.4854]
[1721543214775,3.65995,3497.8,3497.3,2.4854]
[1721543216591,0.801,3497.8,3497.3,2.4854]
[1721543222591,2.85886,3497.9,3497.3,2.4854]
[1721543223597,0.5961033,3498.0,3497.3,2.4854]
[1721543223803,0.5961033,3498.0,3497.4,2.4013]
[1721543225081,0.5961033,3498.0,3497.4,5.26055]
[1721543225405,0.5961033,3498.2,3497.5,5.26048]
[1721543225706,0.5961033,3498.2,3497.6,2.4013]
[1721543228716,0.5961033,3498.2,3497.6,5.26034]
[1721543228901,0.5961033,3498.2,3497.7,3.213252]
[1721543229103,1.3971033,3498.3,3497.7,3.213252]
[1721543229598,0.5961033,3498.3,3497.7,3.213252]
[1721543229792,0.5961033,3498.3,3497.7,6.072252]
[1721543230171,0.83705255,3498.2,3497.7,6.072252]
[1721543230367,0.83705255,3498.2,3497.8,0.8931432]
[1721543230574,0.5961033,3498.3,3497.8,0.8931432]
[1721543230834,1.69515496,3498.4,3497.8,0.8931432]
[1721543230835,0.5961033,3498.2,3497.8,0.8931432]
[1721543232185,1.3971033,3498.2,3497.7,2.4013]
[1721543233388,0.5961033,3498.2,3497.7,2.4013]
[1721543234318,0.83703543,3498.1,3497.7,2.4013]
[1721543235878,1.43313873,3498.1,3497.7,2.4013]
[1721543236074,0.5961033,3498.1,3497.7,2.4013]
[1721543236311,0.5961033,3498.1,3497.7,2.92734]
[1721543239285,0.83691062,3498.0,3497.7,2.92734]
[1721543239484,1.43301392,3498.0,3497.7,2.92734]
[1721543239699,0.5961033,3498.1,3497.7,2.92734]
[1721543240421,0.83682052,3498.0,3497.7,2.92734]
[1721543241218,0.5961033,3498.1,3497.7,2.92734]
[1721543241421,0.83673604,3498.0,3497.7,2.92734]
[1721543241607,1.43283934,3498.0,3497.7,2.92734]
[1721543241809,0.5961033,3498.0,3497.7,2.92734]
[1721543243289,0.8367249,3497.9,3497.7,2.92734]
[1721543243590,0.8367249,3497.9,3497.8,0.578642]
[1721543244128,0.83673522,3497.9,3497.8,0.578642]
[1721543246930,0.83673522,3497.9,3497.7,2.4013]
[1721543247134,1.43283852,3497.9,3497.7,2.4013]
[1721543247316,0.5961033,3497.9,3497.7,2.4013]
[1721543247829,0.5961033,3498.0,3497.7,2.4013]
[1721543248032,0.83676453,3497.9,3497.7,2.4013]
[1721543248355,0.83676453,3497.9,3497.7,2.72153]
[1721543248718,0.5961033,3498.0,3497.7,2.72153]
[1721543248915,0.5961033,3498.1,3497.7,2.72153]
[1721543249119,0.83687942,3498.0,3497.7,2.72153]
[1721543249418,0.5961033,3498.1,3497.7,2.72153]
[1721543249620,1.43298708,3498.0,3497.7,2.72153]
[1721543249821,0.5961033,3498.0,3497.8,0.3703315]
[1721543250058,0.5961033,3498.1,3497.8,0.3703315]
[1721543250222,0.83684786,3498.0,3497.8,0.3703315]
[1721543250418,1.43295116,3498.0,3497.7,2.72153]
[1721543250642,0.83684786,3497.9,3497.7,2.72153]
[1721543254217,1.43295116,3497.9,3497.7,2.72153]
[1721543254414,0.5961033,3497.9,3497.7,2.72153]
[1721543255435,0.83668178,3497.8,3497.7,2.72153]
[1721543255956,0.5961033,3497.9,3497.7,2.72153]
[1721543256118,0.5961033,3497.9,3497.8,0.55807]
[1721543256642,1.43273325,3497.9,3497.8,0.55807]
[1721543257661,0.83662995,3497.9,3497.4,2.3302]
[1721543257860,0.59652214,3497.8,3497.4,2.3302]
[1721543258036,0.83662995,3497.9,3497.4,2.3302]
[1721543258037,1.43315209,3497.7,3497.4,2.3302]
[1721543258233,0.83662995,3497.6,3497.4,2.3302]